fUSD/lending_fUSD_20260107
["ID","MTS","AMOUNT","RATE_DAILY","PERIOD"]
[400720650,1767795890810,-178.56152397,0.00015525,2]
[400720651,1767795890843,-339.34109424,0.00015525,2]
[400720652,1767795890875,-500.0,0.00015525,2]
[400720653,1767795890908,-202.53434083,0.00015525,2]
[400720654,1767795890940,-500.0,0.00015525,2]
[400720655,1767795890970,-459.31874707,0.00015525,2]
[400720656,1767795893692,-220.23381288,0.00015526,2]
[400720657,1767795904401,-300.0,0.00015525,2]
[400720658,1767795904442,-1200.0,0.00015525,2]
[400720659,1767795904478,-300.0,0.00015525,2]
[400720660,1767795905233,-2561.41508027,0.00015526,2]
[400720661,1767795905420,-10000.01,0.00015526,2]
[400720662,1767795905704,-10000.01,0.00015526,2]
[400720663,1767795905821,-229.00065208,0.00015526,2]
[400720664,1767795905947,-10000.01,0.00015526,2]
[400720665,1767795914455,-10000.01,0.00015526,2]
[400720666,1767795915530,-10000.01,0.00015526,2]
[400720667,1767795915726,-10000.01,0.00015526,2]
[400720668,1767795915843,-10000.01,0.00015526,2]
[400720669,1767795915960,-10000.01,0.00015526,2]
[400720670,1767795916053,-349.99934792,0.00015526,2]
[400720671,1767795949179,-10000.01,0.00015526,2]
[400720672,1767795949556,-10000.01,0.00015526,2]
[400720673,1767795949752,-10000.01,0.00015526,2]
[400720674,1767795949875,-10000.01,0.00015526,2]
[400720675,1767795950068,-10000.01,0.00015526,2]
[400720676,1767795950204,-10000.01,0.00015526,2]
[400720677,1767795950314,-10000.01,0.00015526,2]
[400720678,1767795950478,-10000.01,0.00015526,2]
[400720679,1767795950648,-10000.01,0.00015526,2]
[400720698,1767795968499,845.521735,7.945e-05,2]
[400720699,1767795970705,300.0,0.00011712,2]
[400720700,1767795979213,10020.58915762,0.000295,120]
[400720701,1767795988945,-472.71474874,0.00015479,2]
[400720702,1767795989197,-9054.58050252,0.00015479,2]
[400720703,1767795989322,-7735.07946888,0.00015479,2]
[400720704,1767795989332,-300.0,0.00015525,2]
[400720705,1767795989341,-1964.93053112,0.00015526,2]
[400720706,1767795989358,-10000.01,0.00015526,2]
[400720707,1767795989449,-10000.01,0.00015526,2]
[400720708,1767795989476,-10000.01,0.00015526,2]
[400720709,1767795989666,-10000.01,0.00015526,2]
[400720710,1767795989904,-10000.01,0.00015526,2]
[400720711,1767795990665,-10000.01,0.00015526,2]
[400720712,1767795990768,-10000.01,0.00015526,2]
[400720713,1767796021663,-10000.01,0.00015526,2]
[400720918,1767796055376,235.2,7.803e-05,2]
[400720919,1767796055543,235.2,8.213e-05,2]
[400720920,1767796055967,235.2,8.624e-05,2]
[400720921,1767796056266,235.2,9.035e-05,2]
[400720922,1767796056519,235.2,9.445e-05,2]
[400720923,1767796056734,235.2,9.856e-05,2]
[400720924,1767796057163,235.2,0.00010267,2]
[400720925,1767796057373,235.2,0.00010677,2]
[400720926,1767796057598,235.2,0.00011088,2]
[400720927,1767796057890,235.2,0.00011499,2]
[400720928,1767796058148,235.2,0.00011909,2]
[400720929,1767796058361,235.2,0.0001232,2]
[400720930,1767796058791,235.2,0.0001273,2]
[400720931,1767796059025,235.2,0.00013141,2]
[400720932,1767796059568,235.2,0.00013552,2]
[400720933,1767796059691,235.2,0.00013962,2]
[400720934,1767796059856,235.2,0.00014373,2]
[400720935,1767796060001,235.2,0.00014784,2]
[400720936,1767796060185,235.2,0.00015194,2]
[400720938,1767796061432,776.6986,0.00015426,2]
[400720939,1767796079013,4754.5114,0.00015496,2]
[400720940,1767796079037,5245.4886,0.00015496,2]
[400720942,1767796097945,4754.5214,0.00015496,2]
[400720943,1767796097971,5245.4786,0.00015496,2]
[400720944,1767796098516,-183.94017844,0.00015515,2]
[400720945,1767796100223,-116.05982156,0.00015515,2]
[400720946,1767796100248,-35.72885611,0.00015516,2]
[400720947,1767796102512,-214.27114389,0.00015516,2]
[400720948,1767796102535,-5.38617095,0.00015516,2]
[400720949,1767796107492,-387.81249801,0.00015516,2]
[400720950,1767796110252,-305.02621265,0.00015516,2]
[400720951,1767796112843,-435.80607334,0.00015516,2]
[400720952,1767796114419,-413.403073,0.00015516,2]
[400720953,1767796115136,1789.14401484,0.00032,120]
[400720954,1767796117784,4754.5314,0.00015496,2]
[400720955,1767796117810,5245.4686,0.00015496,2]
[400720956,1767796118303,-203.86,0.00015516,2]
[400720957,1767796129378,183.901867,0.00015438,2]
[400720958,1767796134155,4570.639533,0.00015496,2]
[400720959,1767796134183,5429.360467,0.00015496,2]
[400720960,1767796140628,1321.76307314,0.00015425,2]
[400720961,1767796146577,161.0,0.000328,120]
[400720962,1767796150914,3248.88645986,0.00015496,2]
[400720963,1767796150944,6740.60354014,0.00015496,2]
[400720964,1767796151982,-154.09944903,0.00015515,2]
[400720965,1767796154105,1471.22657721,0.00015479,2]
[400720966,1767796154796,-145.90055097,0.00015515,2]
[400720967,1767796154820,-319.82522726,0.00015516,2]
[400720968,1767796155753,1788.17988265,0.00015426,2]
[400720969,1767796155779,2320.59861735,0.00015426,2]
[400720970,1767796156567,161.0,0.000328,120]
[400720971,1767796157609,-313.22299325,0.00015516,2]
[400720972,1767796160517,-300.0,0.00015516,2]
[400720973,1767796161572,-543.53594528,0.00015516,2]
[400720974,1767796164040,-215.56679287,0.00015516,2]
[400720975,1767796165287,-161.34487945,0.00015516,2]
[400720976,1767796166813,-175.88721697,0.00015516,2]
[400720977,1767796168228,393.4129,0.00015426,2]
[400720978,1767796168408,166.66,0.000145,2]
[400720979,1767796168609,166.66,0.00014806,2]
[400720980,1767796168819,166.66,0.00015111,2]
[400720981,1767796169033,166.66,0.00015416,2]
[400720982,1767796170989,-329.17058229,0.00015516,2]
[400720983,1767796173706,-1151.88952264,0.00015516,2]
[400720984,1767796175231,-215.73776141,0.00015516,2]
[400720985,1767796176640,-321.13614272,0.00015516,2]
[400720986,1767796189135,-443.47598748,0.00015516,2]
[400720987,1767796192854,6619.35848265,0.00015479,2]
[400720988,1767796192881,3649.62116013,0.00015479,2]
[400720989,1767796193956,-228.98084791,0.00015516,2]
[400720990,1767796195663,-303.37599486,0.00015516,2]
[400720991,1767796197659,-249.00116379,0.00015516,2]
[400720992,1767796199699,-635.07253898,0.00015516,2]
[400720993,1767796201387,-286.41327817,0.00015516,2]
[400720994,1767796204323,-258.65582907,0.00015515,2]
[400720995,1767796211519,158.0,0.00030555,120]
[400720996,1767796212585,158.0,0.00032083,120]
[400720997,1767796220949,508.35629319,0.00032,120]
[400721011,1767796232637,-41.34417093,0.00015515,2]
[400721012,1767796232647,-1200.0,0.00015515,2]
[400721013,1767796232656,-279.0,0.00015515,2]
[400721014,1767796232665,-5527.91718097,0.00015516,2]
[400721022,1767796232902,-6492.99267057,0.00015516,2]
[400721023,1767796232911,-300.0,0.00015525,2]
[400721024,1767796232920,-500.0,0.00015525,2]
[400721025,1767796232929,-500.0,0.00015525,2]
[400721026,1767796232938,-344.19162239,0.00015525,2]
[400721027,1767796232947,-177532.31676013,0.00015526,2]
[400721028,1767796232962,-14575.56200434,0.00015526,2]
[400721029,1767796232972,-68289.13112239,0.00015526,2]
[400721030,1767796232983,-157413.10428823,0.00015526,2]
[400721031,1767796233074,-315.13107558,0.00015526,2]
[400721032,1767796238627,-151627.25135559,0.00015526,2]
[400721033,1767796238638,-12998.707,0.00015579,2]
[400721034,1767796238648,-235.2,0.00015605,2]
[400721035,1767796238658,-500.0,0.00015679,2]
[400721036,1767796238671,-500.0,0.00015679,2]
[400721037,1767796238682,-500.0,0.00015679,2]
[400721038,1767796238692,-500.0,0.00015679,2]
[400721039,1767796238701,-461.49248906,0.00015679,2]
[400721040,1767796238714,-150.0,0.000157,2]
[400721041,1767796238724,-166.66,0.00015721,2]
[400721042,1767796238734,-1000.0,0.00015726,2]
[400721043,1767796238744,-16789.65997135,0.00015748,2]
[400721044,1767796238753,-10268.97964275,0.00015748,2]
[400721045,1767796238763,-150.0,0.0001575,2]
[400721047,1767796238772,-150.0,0.000158,2]
[400721049,1767796238781,-1471.22657718,0.00015825,2]
[400721050,1767796238790,-150.0,0.000159,2]
[400721052,1767796238800,-1545.6356768,0.000159,2]
[400721053,1767796238809,-1545.63567675,0.000159,2]
[400721054,1767796238818,-1545.63567675,0.000159,2]
[400721055,1767796238828,-1545.63567675,0.000159,2]
[400721057,1767796238838,-1545.63567675,0.000159,2]
[400721059,1767796238847,-1545.63567675,0.000159,2]
[400721060,1767796238856,-166.67,0.00015962,2]
[400721062,1767796238865,-150.0,0.00016,2]
[400721064,1767796238875,-36877.87026351,0.00016,4]
[400721066,1767796238885,-16789.65997135,0.00016017,2]
[400721068,1767796238895,-10268.97964275,0.00016017,2]
[400721070,1767796238904,-166.66,0.00016027,2]
[400721072,1767796238913,-1100.0,0.00016167,2]
[400721074,1767796238923,-1471.22657718,0.00016171,2]
[400721076,1767796238933,-16789.65997135,0.00016286,2]
[400721078,1767796238943,-10268.97964275,0.00016286,2]
[400721080,1767796238956,-242.90955143,0.00016437,2]
[400721082,1767796238965,-500.0,0.00016437,2]
[400721084,1767796238975,-321.52312295,0.00016437,2]
[400721086,1767796238985,-263.04678419,0.00016437,2]
[400721088,1767796238994,-500.0,0.00016437,2]
[400721090,1767796239003,-187.49172429,0.00016437,2]
[400721092,1767796239012,-184.13274893,0.00016437,2]
[400721094,1767796239022,-224.20071648,0.00016437,2]
[400721096,1767796239033,-500.0,0.00016438,2]
[400721098,1767796239043,-500.0,0.00016438,2]
[400721100,1767796239052,-500.0,0.00016438,2]
[400721102,1767796239062,-391.78360912,0.00016438,2]
[400721104,1767796239072,-11959.8,0.00016438,2]
[400721106,1767796239082,-499.99,0.00016438,2]
[400721108,1767796239091,-99541.5,0.00016438,2]
[400721110,1767796239101,-1178.51,0.00016438,2]
[400721112,1767796239110,-9999.99,0.00016438,2]
[400721114,1767796239121,-150.99,0.00016438,2]
[400721116,1767796239131,-5226.03,0.00016438,2]
[400721118,1767796239142,-9999.99,0.00016438,2]
[400721120,1767796239152,-999.99,0.00016438,2]
[400721122,1767796239163,-529.93,0.00016438,5]
[400721124,1767796239173,-3174.75,0.00016438,2]
[400721126,1767796239183,-169.44,0.00016485,2]
[400721128,1767796239193,-1471.22657718,0.00016517,2]
[400721130,1767796239203,-152.0,0.0001653,2]
[400721131,1767796239217,-1260.0,0.0001653,2]
[400721133,1767796239227,-840.0,0.0001653,2]
[400721136,1767796239239,-152.0,0.0001653,2]
[400721137,1767796239249,-1260.0,0.0001653,2]
[400721139,1767796239260,-152.0,0.0001653,2]
[400721141,1767796239270,-987.18375796,0.0001653,2]
[400721143,1767796239280,-151.0,0.0001653,2]
[400721145,1767796239290,-1260.0,0.0001653,2]
[400721148,1767796239301,-151.0,0.0001653,2]
[400721150,1767796239311,-152.0,0.0001653,2]
[400721151,1767796239321,-1260.0,0.0001653,2]
[400721153,1767796239332,-1260.0,0.0001653,2]
[400721156,1767796239342,-152.0,0.0001653,2]
[400721157,1767796239352,-151.0,0.0001653,2]
[400721160,1767796239362,-1260.0,0.0001653,2]
[400721162,1767796239372,-152.0,0.0001653,2]
[400721163,1767796239383,-151.0,0.0001653,2]
[400721166,1767796239393,-152.0,0.0001653,2]
[400721167,1767796239403,-1260.0,0.0001653,2]
[400721170,1767796239413,-152.0,0.0001653,2]
[400721172,1767796239423,-152.0,0.0001653,2]
[400721173,1767796239432,-1260.0,0.0001653,2]
[400721175,1767796239443,-152.0,0.0001653,2]
[400721177,1767796239453,-152.0,0.0001653,2]
[400721180,1767796239464,-152.0,0.0001653,2]
[400721182,1767796239475,-1260.0,0.0001653,2]
[400721183,1767796239485,-152.0,0.0001653,2]
[400721186,1767796239495,-1260.0,0.0001653,2]
[400721187,1767796239504,-152.0,0.0001653,2]
[400721189,1767796239513,-152.0,0.0001653,2]
[400721191,1767796239523,-1260.0,0.0001653,2]
[400721193,1767796239533,-165.84142417,0.0001653,2]
[400721195,1767796239544,-151.0,0.0001653,2]
[400721197,1767796239553,-1260.0,0.0001653,2]
[400721198,1767796239563,-152.0,0.0001653,2]
[400721200,1767796239572,-152.0,0.0001653,2]
[400721201,1767796239582,-151.0,0.0001653,2]
[400721202,1767796239593,-1260.0,0.0001653,2]
[400721203,1767796239605,-1260.0,0.0001653,2]
[400721204,1767796239615,-152.0,0.0001653,2]
[400721205,1767796239624,-151.0,0.0001653,2]
[400721206,1767796239633,-152.0,0.0001653,2]
[400721207,1767796239644,-1260.0,0.0001653,2]
[400721208,1767796239654,-151.0,0.0001653,2]
[400721209,1767796239663,-151.0,0.0001653,2]
[400721210,1767796239673,-1260.0,0.0001653,2]
[400721211,1767796239682,-152.0,0.0001653,2]
[400721212,1767796239692,-151.0,0.0001653,2]
[400721213,1767796239701,-1260.0,0.0001653,2]
[400721214,1767796239716,-151.0,0.0001653,2]
[400721215,1767796239726,-1260.0,0.0001653,2]
[400721216,1767796239736,-151.0,0.0001653,2]
[400721217,1767796239745,-1260.0,0.0001653,2]
[400721218,1767796239755,-249.00589759,0.0001653,2]
[400721219,1767796239764,-1260.0,0.0001653,2]
[400721220,1767796239776,-152.0,0.0001653,2]
[400721221,1767796239785,-152.0,0.0001653,2]
[400721222,1767796239795,-1260.0,0.0001653,2]
[400721223,1767796239805,-1260.0,0.0001653,2]
[400721224,1767796239814,-152.0,0.0001653,2]
[400721225,1767796239824,-1260.0,0.0001653,2]
[400721226,1767796239834,-152.0,0.0001653,2]
[400721227,1767796239844,-152.0,0.0001653,2]
[400721228,1767796239854,-152.0,0.0001653,2]
[400721229,1767796239864,-1260.0,0.0001653,2]
[400721230,1767796239874,-152.0,0.0001653,2]
[400721231,1767796239884,-1260.0,0.0001653,2]
[400721232,1767796239894,-152.0,0.0001653,2]
[400721233,1767796239904,-151.0,0.0001653,2]
[400721234,1767796239914,-1260.0,0.0001653,2]
[400721235,1767796239924,-152.0,0.0001653,2]
[400721236,1767796239934,-151.0,0.0001653,2]
[400721237,1767796239944,-1260.0,0.0001653,2]
[400721238,1767796239957,-152.0,0.0001653,2]
[400721239,1767796239968,-151.0,0.0001653,2]
[400721240,1767796239978,-555.56608374,0.0001653,2]
[400721241,1767796239987,-1260.0,0.0001653,2]
[400721242,1767796239997,-166.87127614,0.0001653,2]
[400721243,1767796240006,-151.0,0.0001653,2]
[400721244,1767796240016,-158.0,0.0001653,2]
[400721245,1767796240026,-152.0,0.0001653,2]
[400721246,1767796240036,-151.0,0.0001653,2]
[400721247,1767796240045,-158.0,0.0001653,2]
[400721248,1767796240055,-151.0,0.0001653,2]
[400721249,1767796240064,-158.0,0.0001653,2]
[400721250,1767796240074,-151.0,0.0001653,2]
[400721251,1767796240084,-158.0,0.0001653,2]
[400721252,1767796240093,-151.0,0.0001653,2]
[400721253,1767796240103,-163.28639204,0.0001653,2]
[400721254,1767796240112,-151.0,0.0001653,2]
[400721255,1767796240122,-151.0,0.0001653,2]
[400721256,1767796240132,-151.0,0.0001653,2]
[400721257,1767796240142,-151.0,0.0001653,2]
[400721258,1767796240153,-151.0,0.0001653,2]
[400721259,1767796240164,-151.0,0.0001653,2]
[400721260,1767796240174,-151.0,0.0001653,2]
[400721261,1767796240185,-151.0,0.0001653,2]
[400721262,1767796240194,-151.0,0.0001653,2]
[400721263,1767796240208,-151.0,0.0001653,2]
[400721264,1767796240217,-151.0,0.0001653,2]
[400721265,1767796240228,-151.0,0.0001653,2]
[400721266,1767796240239,-151.0,0.0001653,2]
[400721267,1767796240249,-151.0,0.0001653,2]
[400721268,1767796240260,-151.0,0.0001653,2]
[400721269,1767796240270,-151.0,0.0001653,2]
[400721270,1767796240280,-151.0,0.0001653,2]
[400721271,1767796240291,-151.0,0.0001653,2]
[400721272,1767796240301,-151.0,0.0001653,2]
[400721273,1767796240311,-151.0,0.0001653,2]
[400721274,1767796240321,-151.0,0.0001653,2]
[400721275,1767796240331,-151.0,0.0001653,2]
[400721276,1767796240341,-151.0,0.0001653,2]
[400721277,1767796240351,-151.0,0.0001653,2]
[400721278,1767796240361,-151.0,0.0001653,2]
[400721279,1767796240371,-151.0,0.0001653,2]
[400721280,1767796240380,-151.0,0.0001653,2]
[400721281,1767796240391,-151.0,0.0001653,2]
[400721282,1767796240401,-151.0,0.0001653,2]
[400721283,1767796240410,-151.0,0.0001653,2]
[400721284,1767796240420,-151.0,0.0001653,2]
[400721286,1767796240430,-151.0,0.0001653,2]
[400721288,1767796240440,-151.0,0.0001653,2]
[400721289,1767796240450,-151.0,0.0001653,2]
[400721290,1767796240462,-151.0,0.0001653,2]
[400721291,1767796240471,-151.0,0.0001653,2]
[400721292,1767796240480,-151.0,0.0001653,2]
[400721293,1767796240490,-151.0,0.0001653,2]
[400721294,1767796240499,-213.71973749,0.0001653,2]
[400721295,1767796240509,-16789.65997135,0.00016555,2]
[400721296,1767796240518,-10268.97964275,0.00016555,2]
[400721297,1767796240527,-2560.43,0.00016619,2]
[400721298,1767796240540,-510.0,0.00016643,2]
[400721299,1767796240549,-150.37,0.00016649,2]
[400721300,1767796240559,-151.0,0.00016702,2]
[400721301,1767796240568,-151.0,0.00016702,2]
[400721302,1767796240578,-151.0,0.00016743,2]
[400721303,1767796240588,-151.0,0.00016743,2]
[400721304,1767796240597,-151.0,0.00016751,2]
[400721305,1767796240610,-151.0,0.00016751,2]
[400721306,1767796240619,-1000.0,0.00016751,2]
[400721307,1767796240629,-16789.65997135,0.00016824,2]
[400721308,1767796240638,-10268.97964275,0.00016824,2]
[400721309,1767796240648,-166.67,0.0001684,2]
[400721310,1767796240658,-1471.22657718,0.00016862,2]
[400721311,1767796240668,-161.0,0.000169,2]
[400721312,1767796240682,-162.37,0.000169,2]
[400721313,1767796240692,-420.0,0.00016971,2]
[400721314,1767796240701,-200.0,0.00016974,2]
[400721315,1767796240713,-540.82,0.00016986,2]
[400721316,1767796240722,-200.0,0.00017008,2]
[400721317,1767796240731,-200.0,0.00017008,2]
[400721318,1767796240741,-151.0,0.00017008,2]
[400721319,1767796240751,-151.0,0.00017008,2]
[400721320,1767796240760,-151.0,0.00017008,2]
[400721321,1767796240770,-151.0,0.00017008,2]
[400721322,1767796240779,-151.0,0.00017008,2]
[400721323,1767796240788,-151.0,0.00017008,2]
[400721324,1767796240798,-151.0,0.00017008,2]
[400721325,1767796240809,-151.0,0.00017008,2]
[400721326,1767796240818,-151.0,0.00017008,2]
[400721330,1767796241099,-500.0,0.00017008,2]
[400721331,1767796241178,-151.0,0.00017008,2]
[400721332,1767796241188,-151.0,0.00017008,2]
[400721333,1767796241197,-1100.0,0.00017018,2]
[400721334,1767796241210,-1680.0,0.00017057,2]
[400721335,1767796241220,-250.0,0.00017067,2]
[400721336,1767796241230,-195.0,0.00017068,2]
[400721337,1767796241239,-721.00844057,0.00017079,2]
[400721338,1767796241248,-16789.65997135,0.00017093,2]
[400721339,1767796241258,-10268.97964275,0.00017093,2]
[400721340,1767796241267,-1132.81,0.00017099,2]
[400721341,1767796241277,-574.12855637,0.00017099,2]
[400721342,1767796241287,-1500.0,0.00017099,2]
[400721343,1767796241296,-1500.0,0.00017099,2]
[400721344,1767796241305,-1500.0,0.00017099,2]
[400721345,1767796241315,-1457.13206838,0.00017099,2]
[400721346,1767796241324,-500.0,0.00017099,2]
[400721347,1767796241333,-500.0,0.00017099,2]
[400721348,1767796241343,-500.0,0.00017099,2]
[400721349,1767796241352,-500.0,0.00017099,2]
[400721350,1767796241367,-500.0,0.00017099,2]
[400721351,1767796241377,-500.0,0.00017099,2]
[400721352,1767796241387,-500.0,0.00017099,2]
[400721353,1767796241397,-255.49772714,0.00017099,2]
[400721354,1767796241409,-500.0,0.00017099,2]
[400721355,1767796241418,-500.0,0.00017099,2]
[400721356,1767796241428,-500.0,0.00017099,2]
[400721357,1767796241437,-500.0,0.00017099,2]
[400721358,1767796241447,-200.0,0.00017099,2]
[400721359,1767796241460,-500.0,0.00017099,2]
[400721360,1767796241470,-207.4,0.00017099,2]
[400721361,1767796241479,-500.0,0.00017099,2]
[400721362,1767796241489,-215.0738,0.00017099,2]
[400721363,1767796241498,-500.0,0.00017099,2]
[400721364,1767796241508,-223.0315306,0.00017099,2]
[400721365,1767796241517,-327.23086226,0.00017099,2]
[400721366,1767796241527,-231.28369723,0.00017099,2]
[400721367,1767796241537,-239.84119403,0.00017099,2]
[400721368,1767796241547,-248.71531821,0.00017099,2]
[400721369,1767796241556,-257.91778498,0.00017099,2]
[400721370,1767796241566,-267.46074303,0.00017099,2]
[400721371,1767796241575,-277.35679052,0.00017099,2]
[400721372,1767796241586,-1471.22657718,0.00017208,2]
[400721373,1767796241596,-16789.65997135,0.00017362,2]
[400721374,1767796241609,-10268.97964275,0.00017362,2]
[400721375,1767796241619,-1132.81,0.00017373,2]
[400721376,1767796241629,-1000.0,0.0001738,2]
[400721377,1767796241639,-500.0,0.00017418,2]
[400721378,1767796241649,-2000.0,0.000175,2]
[400721379,1767796241658,-535.0,0.00017526,2]
[400721380,1767796241668,-1471.22657718,0.00017554,2]
[400721381,1767796241678,-500.0,0.00017556,2]
[400721382,1767796241687,-500.0,0.00017594,2]
[400721383,1767796241697,-502.16378022,0.00017594,2]
[400721384,1767796241708,-500.0,0.00017594,2]
[400721385,1767796241718,-442.83023798,0.00017594,2]
[400721386,1767796241727,-500.0,0.00017594,2]
[400721387,1767796241737,-500.0,0.00017594,2]
[400721388,1767796241747,-500.0,0.00017594,2]
[400721389,1767796241756,-500.0,0.00017594,2]
[400721390,1767796241769,-500.0,0.00017594,2]
[400721391,1767796241779,-500.0,0.00017594,2]
[400721392,1767796241788,-500.0,0.00017594,2]
[400721393,1767796241797,-500.0,0.00017594,2]
[400721394,1767796241807,-500.0,0.00017594,2]
[400721395,1767796241816,-519.44971303,0.00017594,2]
[400721396,1767796241826,-500.73448024,0.00017594,2]
[400721397,1767796241835,-500.0,0.00017594,2]
[400721398,1767796241845,-500.0,0.00017594,2]
[400721399,1767796241854,-500.0,0.00017594,2]
[400721400,1767796241863,-500.0,0.00017594,2]
[400721401,1767796241873,-500.0,0.00017594,2]
[400721402,1767796241882,-1000.0,0.000176,2]
[400721403,1767796241891,-1000.0,0.000176,2]
[400721404,1767796241901,-1000.0,0.000176,2]
[400721405,1767796241911,-1688.95959214,0.0001761,2]
[400721406,1767796241920,-16789.65997135,0.00017631,2]
[400721407,1767796241929,-10268.97964275,0.00017631,2]
[400721408,1767796241939,-8742.57458039,0.0001764,2]
[400721409,1767796241948,-1132.81,0.00017647,2]
[400721410,1767796241960,-595.37131296,0.00017647,2]
[400721411,1767796241970,-1000.0,0.00017691,2]
[400721412,1767796241979,-1000.0,0.00017697,2]
[400721413,1767796241988,-1000.0,0.00017698,2]
[400721414,1767796241998,-1000.0,0.000177,2]
[400721415,1767796242008,-1000.0,0.000177,2]
[400721416,1767796242017,-1000.0,0.000177,2]
[400721417,1767796242027,-1000.0,0.000177,2]
[400721418,1767796242037,-1000.0,0.000177,2]
[400721419,1767796242046,-1000.0,0.000177,2]
[400721420,1767796242056,-1000.0,0.000177,2]
[400721421,1767796242066,-1000.0,0.000177,2]
[400721422,1767796242076,-1000.0,0.000177,2]
[400721423,1767796242085,-1000.0,0.000177,2]
[400721424,1767796242095,-1000.0,0.000177,2]
[400721425,1767796242104,-1000.0,0.000177,2]
[400721426,1767796242114,-1000.0,0.000177,2]
[400721427,1767796242123,-166.67,0.00017718,2]
[400721428,1767796242133,-150.0,0.00017726,2]
[400721429,1767796242142,-1000.0,0.00017727,2]
[400721430,1767796242155,-150.0,0.00017727,2]
[400721431,1767796242164,-150.0,0.00017728,2]
[400721432,1767796242174,-300.0,0.00017729,2]
[400721433,1767796242184,-300.0,0.00017731,2]
[400721434,1767796242193,-300.0,0.00017731,2]
[400721435,1767796242204,-300.0,0.00017733,2]
[400721436,1767796242216,-1000.0,0.00017733,2]
[400721437,1767796242226,-300.0,0.00017736,2]
[400721438,1767796242235,-300.0,0.00017737,2]
[400721439,1767796242245,-300.0,0.00017738,2]
[400721440,1767796242254,-300.0,0.00017743,2]
[400721441,1767796242263,-300.0,0.00017745,2]
[400721442,1767796242273,-150.0,0.00017747,2]
[400721443,1767796242282,-150.0,0.00017747,2]
[400721444,1767796242292,-150.0,0.00017752,2]
[400721445,1767796242301,-300.0,0.00017753,2]
[400721446,1767796242310,-300.0,0.00017754,2]
[400721447,1767796242320,-300.0,0.0001776,2]
[400721448,1767796242329,-300.0,0.0001776,2]
[400721449,1767796242339,-1000.0,0.00017762,2]
[400721450,1767796242348,-300.0,0.00017763,2]
[400721451,1767796242358,-1000.0,0.00017766,2]
[400721452,1767796242367,-300.0,0.00017768,2]
[400721453,1767796242378,-300.0,0.00017771,2]
[400721454,1767796242387,-300.0,0.00017772,2]
[400721455,1767796242396,-1000.0,0.00017774,2]
[400721456,1767796242407,-161.23858714,0.00017775,2]
[400721457,1767796242416,-300.0,0.00017775,2]
[400721458,1767796242426,-150.0,0.00017776,2]
[400721459,1767796242435,-300.0,0.00017783,2]
[400721460,1767796242444,-300.0,0.00017783,2]
[400721461,1767796242454,-300.0,0.00017785,2]
[400721462,1767796242467,-300.0,0.00017789,2]
[400721463,1767796242477,-300.0,0.0001779,2]
[400721464,1767796242486,-300.0,0.00017794,2]
[400721465,1767796242495,-300.0,0.00017796,2]
[400721466,1767796242504,-1000.0,0.00017798,2]
[400721467,1767796242514,-300.0,0.00017799,2]
[400721468,1767796242523,-300.0,0.000178,2]
[400721469,1767796242534,-300.0,0.00017801,2]
[400721470,1767796242543,-1000.0,0.00017804,2]
[400721471,1767796242555,-300.0,0.00017806,2]
[400721472,1767796242564,-1000.0,0.00017807,2]